[Event "Karel Janecek Open 2024"]
[Site "Prague"]
[Date "2024.03.03"]
[Round "5.3"]
[White "Neuman, Petr"]
[Black "Ilamparthi A R"]
[Result "1/2-1/2"]
[ECO "C47"]
[WhiteElo "2398"]
[BlackElo "2426"]
[Annotator "RC"]
[PlyCount "49"]
[EventDate "2024.02.22"]
[EventType "swiss"]
[EventCountry "CZE"]
[SourceTitle "playchess.com"]
[Source "ChessBase"]
[SourceQuality "1"]
[TimeControl "40/5400+30:1800+30"]

1. e4 {[%emt 0:00:04]} e5 {[%emt 0:01:00]} 2. Nf3 {[%emt 0:00:12]} Nc6 {[%emt 0:00:05]} 3. d4 {[%emt 0:00:11]} exd4 {[%emt 0:00:07]} 4. Nxd4 {[%emt 0:00:04]} Nf6 {[%emt 0:00:06]} 5. Nc3 {[%emt 0:00:57]} Bb4 {[%emt 0:00:08]} 6. Nxc6 {[%emt 0:00:12]} bxc6 {[%emt 0:00:02]} 7. Bd3 {[%emt 0:00:22]} O-O {[%emt 0:00:06]} 8. O-O {[%emt 0:00:12]} Re8 {[%emt 0:00:07]} 9. Qf3 {[%emt 0:01:55]} h6 {[%emt 0:01:01]} 10. h3 {[%emt 0:00:37]} d6 {[%emt 0:02:05]} 11. Bd2 {[%emt 0:11:43]} Rb8 {[%emt 0:03:30]} 12. Rad1 {[%emt 0:01:16]} Nd7 {[%emt 0:08:47]} 13. Qg3 {[%emt 0:01:23]} Qf6 {[%emt 0:01:00]} 14. a3 {[%emt 0:02:21]} Ba5 {[%emt 0:11:35]} 15. b4 {[%emt 0:05:13]} Bb6 {[%emt 0:00:06]} 16. Na4 {[%emt 0:00:06]} Ne5 {[%emt 0:01:51]} 17. Bc3 {[%emt 0:02:26]} Qg5 {[%emt 0:00:55]} 18. Kh2 {[%emt 0:12:08]} Be6 {[%emt 0:10:38]} 19. Nxb6 {[%emt 0:14:44]} axb6 {[%emt 0:01:58]} 20. Ra1 {[%emt 0:13:14]} Qxg3+ {[%emt 0:12:17]} 21. Kxg3 {[%emt 0:00:09]} Nxd3 {[%emt 0:01:35]} 22. cxd3 {[%emt 0:00:04]} Bb3 {[%emt 0:02:40]} 23. Rfc1 {[%emt 0:02:50]} Ra8 {[%emt 0:02:41]} 24. f3 {[%emt 0:00:31]} c5 {[%emt 0:04:36]} 25. Bb2 {[%emt 0:00:56]} 1/2-1/2

[Event "Karel Janecek Open 2024"]
[Site "Prague"]
[Date "2024.03.03"]
[Round "5.5"]
[White "Harikrishnan.A.Ra"]
[Black "Bernadskiy, Vitaliy"]
[Result "1/2-1/2"]
[ECO "A49"]
[WhiteElo "2448"]
[BlackElo "2566"]
[Annotator "TA"]
[PlyCount "61"]
[EventDate "2024.02.22"]
[EventType "swiss"]
[EventCountry "CZE"]
[SourceTitle "playchess.com"]
[Source "ChessBase"]
[SourceQuality "1"]
[TimeControl "40/5400+30:1800+30"]

{[%evp 13,61,-16,-12,-41,-34,-66,-61,-64,-75,-73,-52,-69,2,0,4,16,8,10,0,10,5,4,17,4,43,18,22,13,20,22,21,31,29,27,35,10,19,7,6,2,0,0,0,0,0,0,0,0,0,0]} 1. Nf3 {[%emt 0:00:05]} Nf6 {[%emt 0:11:01]} 2. g3 {[%emt 0:00:17]} g6 {[%emt 0:00:11]} 3. b3 {[%emt 0:00:04]} Bg7 {[%emt 0:00:05]} 4. Bb2 {[%emt 0:00:04]} c5 {[%emt 0:00:58]} 5. c4 {[%emt 0:00:17]} d6 {[%emt 0:00:03]} 6. d4 {[%emt 0:04:05]} Ne4 {[%emt 0:03:49]} 7. Bg2 {[%emt 0:10:49]} Qa5+ {[%emt 0:00:45]} 8. Nfd2 {[%emt 0:01:15]} Nxd2 {[%emt 0:01:12]} 9. Bc3 {[%emt 0:01:27]} Qb6 {[%emt 0:05:22] [#] Hoping for ...Nxb1.} (9... Bxd4 $2 10. Bxa5 Nxb1 11. Rxb1 $18) 10. dxc5 {[%emt 0:07:02] Black is slightly better.} Nxb1 $1 {[%emt 0:00:19]} (10... Bxc3 11. Nxc3 $16 (11. cxb6 $2 {is the wrong capture.} Nxb1+ 12. Kf1 Bxa1 $19) (11. cxb6 $2 Nxb1+ 12. Kf1 Bxa1 $19)) 11. Bxg7 {[%emt 0:04:42]} Qb4+ {[%emt 0:04:34]} (11... Qxc5 $2 {perishes.} 12. Bxh8 Qb4+ 13. Kf1 $18) 12. Kf1 {[%emt 0:00:07]} Nd2+ {[%emt 0:01:35]} ({Better is} 12... Rg8 $1 $15 13. Bb2 Nd2+ 14. Kg1 Nxc4 (14... dxc5 15. Rc1 $11)) 13. Kg1 $11 {[%emt 0:00:19]} Rg8 {[%emt 0:00:06]} 14. Bh6 $36 {[%emt 0:07:55][%mdl 2048] White fights for an advantage. A strong pair of Bishops.} Nxc4 {[%emt 0:00:08]} 15. bxc4 {[%emt 0:01:06] Rb1 would now be deadly.} Qxc5 {[%emt 0:00:04][%cal Ob8c6]} 16. Be3 {[%emt 0:02:12]} Qc7 {[%emt 0:00:37][%cal Ob8a6]} 17. h4 {[%emt 0:02:03][%cal Oc4c5]} Bd7 {[%emt 0:02:47][%cal Od7c6] [#]} 18. c5 $1 {[%emt 0:08:19]} Bc6 {[%emt 0:07:46]} (18... dxc5 19. Bxc5) 19. cxd6 {[%emt 0:00:41]} Qxd6 {[%emt 0:00:03]} 20. Qb3 {[%emt 0:01:55]} Qe6 {[%emt 0:01:56]} 21. Bxc6+ {[%emt 0:04:00]} Nxc6 {[%emt 0:00:03]} 22. Qxb7 {[%emt 0:00:13]} Rb8 {[%emt 0:00:05]} 23. Qa6 {[%emt 0:00:15][%cal Oh4h5]} f6 {[%emt 0:00:16]} 24. Rc1 {[%emt 0:02:14]} (24. Kh2 $5) 24... Rc8 {[%emt 0:02:05] The position is equal.} 25. Bxa7 {[%emt 0:07:05]} (25. Kg2 {is more complex.} Kf7 26. h5 g5 27. Rc4) 25... Kf7 {[%emt 0:00:38] And now ...Nxa7 would win.} 26. Be3 {[%emt 0:00:19]} Nb4 {[%emt 0:00:04][%csl LRa2,LRa6]} 27. Qxe6+ {[%emt 0:01:16]} Kxe6 {[%emt 0:00:03]} 28. a4 {[%emt 0:06:38]} Rxc1+ {[%emt 0:00:34]} 29. Bxc1 {[%emt 0:00:04]} Ra8 {[%emt 0:00:02]} 30. Bd2 {[%emt 0:00:06]} Rxa4 {[%emt 0:00:04]} 31. Bxb4 {[%emt 0:00:04] Weighted Error Value: White=0.07 (flawless) /Black=0.07 (flawless) .  Mistake:       	---       	Black=1      Inaccurate:     	White=1     	Black=1      OK:         	White=5     	Black=11     Best:        	White=4     	Black=3      Strong:       	---       	Black=1      Brilliant:      	White=1     	---} 1/2-1/2

[Event "Karel Janecek Open 2024"]
[Site "Prague"]
[Date "2024.03.03"]
[Round "5.6"]
[White "Neverov, Valeriy"]
[Black "Li, Di"]
[Result "0-1"]
[ECO "D45"]
[WhiteElo "2423"]
[BlackElo "2563"]
[Annotator "TA"]
[PlyCount "98"]
[EventDate "2024.02.22"]
[EventType "swiss"]
[EventCountry "CZE"]
[SourceTitle "playchess.com"]
[Source "ChessBase"]
[SourceQuality "1"]
[TimeControl "40/5400+30:1800+30"]

{[%evp 14,98,10,-5,-5,0,-8,0,9,-8,-3,-18,-5,-31,-31,-35,-18,-21,-12,-30,-26,-29,-20,-19,-21,-28,-28,-30,-23,-31,-27,-29,-25,-24,-34,-131,-134,-128,-127,-127,-137,-137,-127,-138,-140,-156,-139,-183,-176,-175,-175,-218,-217,-215,-210,-273,-263,-265,-266,-322,-290,-377,-327,-368,-345,-509,-494,-574,-553,-533,-468,-502,-454,-450,-396,-541,-496,-547,-543,-684,-546,-534,-451,-4706,-539,-1898,-1845]} 1. d4 {[%emt 0:00:03]} d5 {[%emt 0:00:07]} 2. c4 {[%emt 0:00:10]} e6 {[%emt 0:00:10]} 3. Nc3 {[%emt 0:01:05]} c6 {[%emt 0:00:35]} 4. e3 {[%emt 0:01:46]} Nf6 {[%emt 0:00:09]} 5. Nf3 {[%emt 0:01:16]} Nbd7 {[%emt 0:00:06]} 6. b3 {[%emt 0:01:26]} Bb4 {[%emt 0:02:56]} 7. Bd2 {[%emt 0:00:22]} O-O {[%emt 0:01:44]} 8. Be2 {[%emt 0:04:18]} b6 {[%emt 0:02:51]} 9. O-O {[%emt 0:01:24][%cal Oc3d5]} Qe7 {[%emt 0:01:16]} 10. Ne5 {[%emt 0:26:46]} Bb7 {[%emt 0:04:16] The position is equal.} 11. Nxd7 {[%emt 0:02:52]} Nxd7 {[%emt 0:00:42]} 12. Bd3 {[%emt 0:16:29]} Nf6 {[%emt 0:01:43]} 13. Ne2 {[%emt 0:04:27]} Bd6 {[%emt 0:00:36]} 14. Ng3 {[%emt 0:00:19]} g6 {[%emt 0:06:06]} 15. Qe2 {[%emt 0:18:27]} Rfe8 {[%emt 0:19:25]} 16. Rad1 {[%emt 0:01:30]} Rad8 {[%emt 0:03:41]} 17. Bc3 {[%emt 0:02:54]} e5 {[%emt 0:01:19]} 18. dxe5 {[%emt 0:00:44]} Bxe5 {[%emt 0:00:05]} 19. Qb2 {[%emt 0:00:23]} Bxc3 {[%emt 0:05:19]} 20. Qxc3 {[%emt 0:00:03]} h5 {[%emt 0:00:16]} 21. h3 {[%emt 0:02:18]} c5 {[%emt 0:00:52]} 22. Rfe1 {[%emt 0:03:40]} Rd6 {[%emt 0:04:37]} 23. cxd5 {[%emt 0:02:02] e4 is the strong threat.} h4 {[%emt 0:00:14][%cal Of6d5]} 24. Ne2 {[%emt 0:04:29] Black keeps a firm grip on the game.} (24. Nf1 $15 Nxd5 (24... Bxd5 25. Bc2 $11) 25. Qb2) 24... Nxd5 $17 {[%emt 0:00:34]} (24... Bxd5 25. Nf4 $11) 25. Qc1 {[%emt 0:00:12] [#]} Qg5 $1 {[%emt 0:06:56][%cal Rd5e3] Threatens to win with ...Nxe3!} 26. e4 {[%emt 0:00:44]} Qxc1 {[%emt 0:00:05]} 27. Rxc1 {[%emt 0:00:09]} Nf6 $36 {[%emt 0:01:00][%mdl 2048] Black has strong initiative.} 28. Bc4 {[%emt 0:02:03]} Nxe4 {[%emt 0:04:17] Black is more active.} 29. Nc3 {[%emt 0:00:20]} Kf8 {[%emt 0:00:15]} 30. Nxe4 {[%emt 0:01:42]} Rxe4 {[%emt 0:00:44]} 31. Rxe4 {[%emt 0:00:55]} Bxe4 {[%emt 0:00:05][%mdl 4096] Endgame. KRB-KRB} 32. a4 {[%emt 0:00:39]} a5 {[%emt 0:00:42]} 33. Re1 {[%emt 0:00:28]} Rd4 {[%emt 0:00:11]} 34. g3 {[%emt 0:00:32]} Bd3 {[%emt 0:01:47]} 35. Rc1 {[%emt 0:00:25]} Ke7 {[%emt 0:00:18]} 36. gxh4 {[%emt 0:00:29]} Bxc4 {[%emt 0:01:15]} 37. bxc4 $19 {[%emt 0:00:36] KR-KR} Kd6 {[%emt 0:00:19]} (37... Rxh4 38. Kg2 $19) 38. Kg2 {[%emt 0:00:30]} Rd3 {[%emt 0:00:38]} ({Don't play} 38... Rxh4 39. Kg3 Re4 40. f4 $19) 39. Rb1 {[%emt 0:00:30]} (39. f4 $142) 39... Kc6 {[%emt 0:00:15]} 40. Re1 {[%emt 0:00:27]} Ra3 {[%emt 0:01:09]} 41. Re4 {[%emt 0:17:22]} Kd7 {[%emt 0:03:27]} 42. Rf4 {[%emt 0:07:03]} Ke7 {[%emt 0:00:25]} (42... Rxa4 43. Rxf7+ Ke6 44. Rb7 $17) 43. Re4+ {[%emt 0:00:42]} Kf6 {[%emt 0:00:16]} 44. Re8 {[%emt 0:03:23]} Rxa4 {[%emt 0:00:33] Black is clearly winning.} 45. Rb8 {[%emt 0:00:02]} Rb4 {[%emt 0:00:06]} 46. Kf3 {[%emt 0:00:04]} a4 {[%emt 0:00:24][%cal Of6e5] ...Ke5! would now be deadly.} (46... Rxc4 47. Rxb6+ Ke5 48. Ke3 $19) 47. Ke3 {[%emt 0:00:18]} a3 {[%emt 0:01:22]} (47... Rxc4 48. Rxb6+ Ke5 49. h5 gxh5 50. Kd3 Rd4+ (50... Rh4 $2 51. Rc6 $19) 51. Kc3) 48. Kd3 {[%emt 0:01:24]} (48. Ra8 $142) 48... Kf5 {[%emt 0:03:06]} (48... b5 $142 49. Ra8 Rb3+ (49... Rxc4 $2 50. Rxa3 Rxh4 51. Kd2 $19) (49... bxc4+ $2 50. Kc3 $19) 50. Ke4 b4 (50... Rxh3 51. cxb5 Rb3 52. Ra5 $17) (50... bxc4 $2 51. Ra5 $19)) 49. Kc3 {[%emt 0:04:15]} Ra4 {[%emt 0:00:28] Dodges Ra8.   Weighted Error Value: White=0.60/Black=0.18 (very precise) .  Mistake:       	White=3     	Black=1      Inaccurate:     	White=4     	---        OK:         	White=13    	Black=24     Best:        	---       	Black=4      Strong:       	---       	Black=1} 0-1

[Event "Karel Janecek Open 2024"]
[Site "Prague"]
[Date "2024.03.03"]
[Round "5.7"]
[White "Kourkoulos-Arditis, Stamatis"]
[Black "Jarmula, Lukasz"]
[Result "1-0"]
[ECO "C41"]
[WhiteElo "2547"]
[BlackElo "2434"]
[Annotator "TA"]
[PlyCount "161"]
[EventDate "2024.02.22"]
[EventType "swiss"]
[EventCountry "CZE"]
[SourceTitle "playchess.com"]
[Source "ChessBase"]
[SourceQuality "1"]
[TimeControl "40/5400+30:1800+30"]

{[%evp 12,161,26,26,32,45,54,52,58,47,52,49,68,60,30,39,74,16,27,23,28,8,18,25,25,22,19,16,19,6,8,13,9,0,0,0,0,0,0,0,0,0,24,25,23,10,8,0,20,5,22,2,14,8,26,2,2,8,12,0,0,0,0,0,0,0,8,6,22,15,16,11,8,8,13,8,16,16,16,16,136,136,160,14,14,14,15,8,8,8,8,8,8,8,8,8,8,8,8,8,8,8,8,8,8,8,8,8,8,8,8,8,8,8,8,8,8,8,8,8,8,8,8,8,26,8,8,8,10,8,8,8,85,91,164,163,318,307,925,773,5777,5381,5177,4458,29968,29967,29967,29966,12789,5493,2135,1553]} 1. e4 {[%emt 0:00:03]} d6 {[%emt 0:00:06]} 2. d4 {[%emt 0:00:04]} Nf6 {[%emt 0:00:05]} 3. Nc3 {[%emt 0:00:04]} e5 {[%emt 0:00:05]} 4. Nf3 {[%emt 0:00:46]} exd4 {[%emt 0:00:08]} 5. Nxd4 {[%emt 0:00:04]} Be7 {[%emt 0:00:10]} 6. g3 {[%emt 0:02:56]} d5 {[%emt 0:00:13]} 7. e5 {[%emt 0:00:12]} Ng4 {[%emt 0:00:08]} 8. Bg2 {[%emt 0:00:42]} Nxe5 {[%emt 0:00:48]} 9. Qe2 {[%emt 0:06:31]} (9. Bxd5 O-O $11) 9... Nec6 {[%emt 0:00:41] White is slightly better.} 10. Be3 {[%emt 0:01:58]} Nxd4 {[%emt 0:00:09]} 11. Bxd4 {[%emt 0:00:04]} O-O {[%emt 0:00:10]} 12. Nxd5 {[%emt 0:02:02][%cal Bc3d5,Bd5b4,Bb4c2,Bc2d4][%mdl 32] White has more active pieces.} (12. Bxd5 c6 13. Bb3 Qxd4 $11) 12... Bb4+ {[%emt 0:00:10]} 13. Nxb4 {[%emt 0:09:49]} Qxd4 {[%emt 0:00:34]} 14. c3 {[%emt 0:00:18]} (14. Nd5 $1 $16 {[%cal Rd5c7]} Qxb2 15. O-O) 14... Qd8 $11 {[%emt 0:02:01] ...Re8 is the strong threat.} 15. O-O {[%emt 0:08:01] Rad1 would now be deadly.} c6 {[%emt 0:05:54]} 16. Rad1 {[%emt 0:02:06]} Qc7 {[%emt 0:03:14] Black is weak on the dark squares} 17. Rfe1 {[%emt 0:01:39]} Be6 {[%emt 0:01:00]} 18. Nc2 {[%emt 0:28:44]} Nd7 {[%emt 0:11:55]} 19. Nd4 {[%emt 0:00:11]} Rfe8 {[%emt 0:01:07]} 20. Qh5 {[%emt 0:06:56]} Nf6 {[%emt 0:03:53]} 21. Qc5 {[%emt 0:04:39]} Bg4 {[%emt 0:04:33]} 22. f3 {[%emt 0:01:22]} Rxe1+ {[%emt 0:03:46]} 23. Rxe1 {[%emt 0:00:05]} Bd7 {[%emt 0:00:07]} 24. f4 {[%emt 0:00:58]} Qb6 {[%emt 0:05:28]} 25. Qxb6 {[%emt 0:02:12]} axb6 {[%emt 0:00:08]} 26. a3 {[%emt 0:00:03]} Re8 {[%emt 0:05:19]} 27. Rxe8+ {[%emt 0:00:30]} Nxe8 {[%emt 0:00:32][%mdl 4096] Endgame. KBN-KBN} 28. Kf2 {[%emt 0:00:56]} Nd6 {[%emt 0:00:48]} 29. Bf1 {[%emt 0:01:01] Against Nc4} f6 {[%emt 0:01:09]} 30. Ke3 {[%emt 0:01:05]} Kf7 {[%emt 0:01:10]} 31. b4 {[%emt 0:04:51]} Ke7 {[%emt 0:05:13]} 32. Bd3 {[%emt 0:02:46]} h6 {[%emt 0:06:59]} 33. Nb3 {[%emt 0:00:22]} Be6 {[%emt 0:07:33]} 34. Nd2 {[%emt 0:00:09]} g5 {[%emt 0:04:24]} 35. Be2 {[%emt 0:05:47]} Nf5+ {[%emt 0:01:21]} 36. Ke4 {[%emt 0:00:54]} Nd6+ {[%emt 0:00:41]} 37. Ke3 {[%emt 0:00:07]} Nf5+ {[%emt 0:00:11]} 38. Kd3 {[%emt 0:02:09]} Bf7 {[%emt 0:05:48]} 39. Bf3 {[%emt 0:04:14]} Nd6 {[%emt 0:01:23]} 40. c4 {[%emt 0:02:28][%cal Bc3c4,Bc4c5][%mdl 32]} Bg6+ {[%emt 0:02:43]} 41. Kd4 {[%emt 0:04:46]} Nf5+ {[%emt 0:04:33]} 42. Kc3 {[%emt 0:00:50]} gxf4 {[%emt 0:06:44]} 43. gxf4 {[%emt 0:00:18]} Ng7 {[%emt 0:00:26]} 44. Nb3 {[%emt 0:10:24]} Ne6 {[%emt 0:02:28]} 45. c5 {[%emt 0:00:09]} b5 {[%emt 0:15:06]} (45... bxc5 $1 $11 {keeps the balance.} 46. Nxc5 Nxc5 47. bxc5 Ke6) 46. Na5 $16 {[%emt 0:00:31]} Nd8 {[%emt 0:00:07]} 47. Bg4 {[%emt 0:00:45]} ({Only move:} 47. Nxb7 $1 $16 Nxb7 48. Bxc6) 47... f5 $11 {[%emt 0:01:00]} 48. Bf3 {[%emt 0:01:40] And now Kd4 would win.} Be8 $1 {[%emt 0:00:23]} 49. Kd4 {[%emt 0:00:14] Threatens to win with Ke5.} Kf6 {[%emt 0:00:41]} 50. Bh1 {[%emt 0:01:04]} Bd7 {[%emt 0:00:32]} 51. Bg2 {[%emt 0:00:42]} Bc8 {[%emt 0:01:32]} 52. Bf3 {[%emt 0:00:43]} Bd7 {[%emt 0:00:29]} 53. Bd1 {[%emt 0:00:14]} Be6 {[%emt 0:01:08]} 54. Bc2 {[%emt 0:01:49]} Bd5 {[%emt 0:00:57]} 55. Ke3 {[%emt 0:00:16]} Be6 {[%emt 0:01:04]} 56. Bd1 {[%emt 0:03:13]} Bd5 {[%emt 0:01:55]} 57. a4 {[%emt 0:00:47]} bxa4 {[%emt 0:03:21]} 58. Bxa4 {[%emt 0:00:04]} Ke6 {[%emt 0:01:02]} 59. Bc2 {[%emt 0:00:34]} Kf6 {[%emt 0:00:32]} 60. Bd3 {[%emt 0:01:08]} Be6 {[%emt 0:04:03]} 61. Kf2 {[%emt 0:01:20]} Bf7 {[%emt 0:01:14]} 62. Kg3 {[%emt 0:00:27]} Bd5 {[%emt 0:00:22]} 63. Bf1 {[%emt 0:01:52]} Be6 {[%emt 0:03:24]} 64. Bg2 {[%emt 0:00:26]} Bf7 {[%emt 0:02:18]} 65. Kf2 {[%emt 0:00:22]} Be6 {[%emt 0:00:37]} 66. Ke2 {[%emt 0:00:17]} Bf7 {[%emt 0:00:20]} 67. Ke3 {[%emt 0:00:04]} Be6 {[%emt 0:00:26]} 68. Kd4 {[%emt 0:00:29]} Bf7 {[%emt 0:00:48]} 69. Kc3 {[%emt 0:02:52]} Be6 {[%emt 0:00:44]} 70. b5 {[%emt 0:01:21][%cal Rb5c6,Bb4b5,Bb5b6][%mdl 32]} Bc8 {[%emt 0:02:48]} 71. Nc4 {[%emt 0:04:56]} Ne6 {[%emt 0:01:18] [#]} (71... cxb5 $11 {remains equal.} 72. Nb6 (72. Nd6 Bd7 $11) 72... Be6) 72. Nd6 $1 $16 {[%emt 0:00:15]} (72. bxc6 bxc6 73. Bxc6 Nxc5 $17) 72... Nxf4 {[%emt 0:01:38]} (72... Bd7 $16 {was called for.}) 73. Bf3 {[%emt 0:00:22]} ({Weaker is} 73. bxc6 Nxg2 74. cxb7 (74. Nxc8 bxc6 75. Na7 f4 $11) 74... Bxb7 75. Nxb7 Ke5 $15) 73... Be6 $2 {[%emt 0:00:25] [#]} (73... Ne6 {keeps fighting.}) 74. b6 $1 $18 {[%emt 0:00:25]} Ke7 $2 {[%emt 0:00:41] [#]} (74... Bd5) 75. Bxc6 $1 {[%emt 0:00:49][%mdl 512]} Nd5+ {[%emt 0:00:35]} (75... Bd5 76. Bxb7) 76. Bxd5 {[%emt 0:00:32]} Bxd5 {[%emt 0:00:05]} 77. Nxf5+ {[%emt 0:00:03]} Kd7 {[%emt 0:00:37]} 78. Kd4 {[%emt 0:01:26]} Be6 {[%emt 0:00:18]} 79. Nxh6 {[%emt 0:00:11]} Kc6 {[%emt 0:00:21]} 80. h4 {[%emt 0:00:03] h5 would kill now.} Kb5 {[%emt 0:01:08]} 81. Ke4 {[%emt 0:01:14] Weighted Error Value: White=0.08 (flawless) /Black=0.07 (flawless) .  Mistake:       	White=2     	Black=5      Inaccurate:     	---       	Black=1      OK:         	White=22    	Black=32     Best:        	White=4     	Black=2      Strong:       	White=2     	Black=1      Brilliant:      	White=1     	---} 1-0

[Event "Karel Janecek Open 2024"]
[Site "Prague"]
[Date "2024.03.03"]
[Round "5.8"]
[White "Chkhaidze, Nikoloz"]
[Black "Polak, Tomas"]
[Result "0-1"]
[ECO "A11"]
[WhiteElo "2209"]
[BlackElo "2525"]
[Annotator "TA"]
[PlyCount "112"]
[EventDate "2024.02.22"]
[EventType "swiss"]
[EventCountry "CZE"]
[SourceTitle "playchess.com"]
[Source "ChessBase"]
[SourceQuality "1"]
[TimeControl "40/5400+30:1800+30"]

{[%evp 12,112,8,8,27,25,45,31,37,8,27,29,31,35,61,69,87,95,99,96,92,90,94,83,89,80,110,60,80,43,47,43,48,30,19,24,37,8,8,-95,-89,-95,-50,-50,0,0,0,-46,-37,-53,-54,-44,-35,-112,-109,-106,-118,-148,-136,-138,-137,-159,-153,-206,-199,-182,-164,-220,-197,-206,-191,-202,-174,-206,-205,-228,-205,-350,-343,-356,-346,-443,-406,-445,-419,-425,-434,-414,-413,-705,-877,-1036,-1036,-805,-611,-1369,-1362,-1354,-1347,-1322,-497,-1185,-497]} 1. c4 {[%emt 0:00:02]} Nf6 {[%emt 0:00:15]} 2. g3 {[%emt 0:00:01]} c6 {[%emt 0:00:32]} 3. Nf3 {[%emt 0:00:02]} d5 {[%emt 0:00:13]} 4. Bg2 {[%emt 0:00:02]} Bg4 {[%emt 0:02:04]} 5. Ne5 {[%emt 0:00:08]} Be6 {[%emt 0:01:10]} 6. cxd5 {[%emt 0:00:08]} Bxd5 {[%emt 0:01:04]} 7. Nf3 {[%emt 0:00:01]} g6 {[%emt 0:06:58]} 8. Nc3 {[%emt 0:00:25]} Bg7 {[%emt 0:00:15]} 9. O-O {[%emt 0:00:36]} O-O {[%emt 0:00:15] White is slightly better.} 10. Qc2 {[%emt 0:01:48]} a5 {[%emt 0:08:16]} 11. Rd1 {[%emt 0:14:23]} Bxf3 {[%emt 0:14:25]} 12. Bxf3 {[%emt 0:00:16]} Nbd7 {[%emt 0:01:01]} 13. d4 {[%emt 0:00:38]} e6 {[%emt 0:00:23]} 14. e4 {[%emt 0:03:49][%cal Be2e4,Be4e5][%mdl 32]} Qe7 {[%emt 0:03:37]} 15. Bg5 {[%emt 0:11:15]} h6 {[%emt 0:00:56]} 16. Be3 {[%emt 0:00:18]} Rac8 {[%emt 0:01:55]} 17. e5 {[%emt 0:08:15]} Nd5 {[%emt 0:06:38]} 18. Nxd5 {[%emt 0:00:28]} exd5 {[%emt 0:01:58]} 19. Qd2 {[%emt 0:00:35]} ({White should try} 19. h4 $16) 19... h5 {[%emt 0:06:24]} 20. Qxa5 {[%emt 0:00:29]} f6 {[%emt 0:00:17]} 21. exf6 {[%emt 0:05:15]} Nxf6 {[%emt 0:00:21]} 22. Qd2 {[%emt 0:00:42]} Ne4 {[%emt 0:04:49]} 23. Bxe4 {[%emt 0:00:43]} Qxe4 {[%emt 0:00:19]} 24. Qd3 {[%emt 0:01:22]} (24. Bf4 {simplifies} Rce8 25. h4 Rxf4 26. Qxf4 Qxf4 27. gxf4 Re4 28. Re1) 24... Qg4 {[%emt 0:01:29] [#]} 25. h3 {[%emt 0:10:13]} Qxh3 $17 {[%emt 0:04:37] Strongly threatening ...Qg4.} 26. Qxg6 {[%emt 0:00:04]} Rf6 {[%emt 0:01:39]} 27. Qg5 {[%emt 0:16:54]} Rf5 {[%emt 0:21:25]} 28. Qg6 {[%emt 0:07:59]} Rf6 {[%emt 0:01:02] Really sharp!} 29. Qg5 {[%emt 0:00:02]} Kf7 {[%emt 0:03:13] [#] Threatens to win with ...Rg6.} 30. Qh4 $1 {[%emt 0:04:11]} Qxh4 {[%emt 0:00:55]} 31. gxh4 {[%emt 0:00:02]} Re8 {[%emt 0:00:38]} 32. Re1 {[%emt 0:10:32] Black continues to play with concentration.} (32. a4 $15) 32... Re4 $36 {[%emt 0:01:15][%mdl 2048] Keeping White busy.} 33. Bg5 {[%emt 0:00:24] Black must now prevent Rxe4.} Rfe6 {[%emt 0:00:35]} 34. Re3 {[%emt 0:03:12]} Bxd4 {[%emt 0:00:23]} 35. Rf3+ {[%emt 0:00:56]} Kg6 {[%emt 0:01:45]} 36. Kf1 {[%emt 0:00:03]} Bf6 {[%emt 0:04:05] Black is much more active.} 37. Rb3 {[%emt 0:01:30]} (37. Bxf6 $17 Rxf6 38. Rh3) 37... Bxg5 $19 {[%emt 0:00:39]} 38. hxg5 {[%emt 0:00:01][%mdl 4096] Endgame. KRR-KRR} b5 {[%emt 0:00:10]} (38... Kxg5 39. Rxb7 Rh4 40. Kg2) 39. Rc1 {[%emt 0:01:43]} (39. Rf3 {was called for.}) 39... Kxg5 {[%emt 0:00:45]} 40. Rg3+ {[%emt 0:00:25]} Kf6 {[%emt 0:01:08]} 41. b3 {[%emt 0:30:20]} Ke7 {[%emt 0:01:25]} 42. Rg7+ {[%emt 0:00:00]} Kd6 {[%emt 0:00:26]} 43. Rh7 {[%emt 0:00:00]} Re2 {[%emt 0:09:47]} 44. Rxh5 {[%emt 0:00:00]} (44. a4 $142) 44... Rxa2 {[%emt 0:00:33]} 45. Rf5 {[%emt 0:00:00]} Rb2 {[%emt 0:02:53]} 46. Rc3 {[%emt 0:00:00]} b4 {[%emt 0:04:42]} 47. Rg3 {[%emt 0:00:00]} Rc2 {[%emt 0:00:30]} 48. Rf4 {[%emt 0:00:00]} Kc5 {[%emt 0:00:12]} 49. Rgg4 {[%emt 0:00:00]} Rb2 {[%emt 0:00:17]} 50. Rxb4 {[%emt 0:00:00]} (50. Rf3 $142) 50... Rf6 {[%emt 0:00:14] Black is clearly winning.} 51. Rb8 {[%emt 0:00:00]} Rfxf2+ {[%emt 0:00:46]} 52. Kg1 {[%emt 0:00:00]} Rfc2 {[%emt 0:00:33][%cal Rc2c1]} 53. b4+ {[%emt 0:00:00]} Kd6 {[%emt 0:00:05][%cal Rb2b1]} 54. Rf8 {[%emt 0:00:00]} Rc1+ {[%emt 0:00:17]} 55. Rf1 {[%emt 0:00:00]} Rxf1+ {[%emt 0:00:11]} 56. Kxf1 {[%emt 0:00:00]} Ke5 {[%emt 0:00:29] Weighted Error Value: White=0.38/Black=0.14 (very precise) .  Mistake:       	White=7     	---        Inaccurate:     	White=3     	Black=3      OK:         	White=20    	Black=22     Best:        	---       	Black=4      Strong:       	White=1     	---} (56... Kc7 $142 57. b5 Rxb5 (57... cxb5 $2 58. Ke1 $19) 58. Rg7+ Kb6) 0-1